[Event "Early-Titled-Tuesday-Blitz-January-23-2024"]
[Site "Chess.com"]
[Date "2024.01.23"]
[Round "2"]
[White "Vazabanga"]
[Black "Raud100"]
[Result "0-1"]
[WhiteElo "2663"]
[BlackElo "2393"]
[TimeControl "180+1"]
[EndTime "8:17:58 PST"]
[Termination "Raud100 won by checkmate"]

1. d4 {[%clk 0:02:53.6]} 1... d5 {[%clk 0:03:00.2]} 2. c4 {[%clk 0:02:53.9]}
2... c6 {[%clk 0:03:00.7]} 3. Nf3 {[%clk 0:02:54.5]} 3... Nf6 {[%clk 0:03:00.4]}
4. Qb3 {[%clk 0:02:55.1]} 4... Qb6 {[%clk 0:02:59.7]} 5. c5 {[%clk 0:02:52.9]}
5... Qxb3 {[%clk 0:02:57.7]} 6. axb3 {[%clk 0:02:53.8]} 6... Bf5 {[%clk
0:02:57.8]} 7. b4 {[%clk 0:02:54]} 7... Bxb1 {[%clk 0:02:54.4]} 8. Rxb1 {[%clk
0:02:53.8]} 8... a6 {[%clk 0:02:55.3]} 9. Bf4 {[%clk 0:02:52.1]} 9... Nbd7
{[%clk 0:02:54.2]} 10. h3 {[%clk 0:02:52.4]} 10... Ne4 {[%clk 0:02:49.4]} 11. e3
{[%clk 0:02:51.5]} 11... g6 {[%clk 0:02:49.1]} 12. Bd3 {[%clk 0:02:47.4]} 12...
f5 {[%clk 0:02:46.6]} 13. Ne5 {[%clk 0:01:55.7]} 13... Nxe5 {[%clk 0:02:43.4]}
14. Bxe5 {[%clk 0:01:56.6]} 14... Rg8 {[%clk 0:02:42]} 15. f3 {[%clk 0:01:56.1]}
15... Nf6 {[%clk 0:02:41.8]} 16. Bxf6 {[%clk 0:01:53]} 16... exf6 {[%clk
0:02:41.4]} 17. f4 {[%clk 0:01:52.7]} 17... Kf7 {[%clk 0:02:28.7]} 18. g4 {[%clk
0:01:46.2]} 18... fxg4 {[%clk 0:02:26.6]} 19. hxg4 {[%clk 0:01:47.1]} 19... h6
{[%clk 0:02:26.4]} 20. Kf2 {[%clk 0:01:44.8]} 20... Re8 {[%clk 0:02:26]} 21.
Rbf1 {[%clk 0:01:35.7]} 21... Bg7 {[%clk 0:02:24.4]} 22. Ke2 {[%clk 0:01:35.7]}
22... Re7 {[%clk 0:02:23]} 23. Kd2 {[%clk 0:01:35.4]} 23... Rge8 {[%clk
0:02:22.4]} 24. Rf3 {[%clk 0:01:36]} 24... Re6 {[%clk 0:02:18]} 25. Rfh3 {[%clk
0:01:35]} 25... R6e7 {[%clk 0:02:17.2]} 26. Rf3 {[%clk 0:01:34.3]} 26... Bf8
{[%clk 0:02:17]} 27. Rhh3 {[%clk 0:01:19.4]} 27... Bg7 {[%clk 0:02:16.6]} 28.
Kc3 {[%clk 0:01:19.1]} 28... Rd8 {[%clk 0:02:12.2]} 29. Kb3 {[%clk 0:01:17.4]}
29... Rde8 {[%clk 0:01:44.2]} 30. Ka4 {[%clk 0:01:17.3]} 30... Bf8 {[%clk
0:01:39.4]} 31. Ka5 {[%clk 0:01:11.3]} 31... Bg7 {[%clk 0:01:09.6]} 32. Kb6
{[%clk 0:01:09.5]} 32... Bf8 {[%clk 0:01:09]} 33. Ka5 {[%clk 0:01:03]} 33... Bg7
{[%clk 0:01:08.6]} 34. Ka4 {[%clk 0:01:03.6]} 34... Bf8 {[%clk 0:01:08.3]} 35.
Kb3 {[%clk 0:01:04.5]} 35... Bg7 {[%clk 0:01:08.6]} 36. Kc3 {[%clk 0:01:05.4]}
36... Bf8 {[%clk 0:01:09]} 37. Bc2 {[%clk 0:01:05.9]} 37... Bg7 {[%clk
0:01:09.7]} 38. Kd3 {[%clk 0:01:06.4]} 38... Bf8 {[%clk 0:01:09.9]} 39. Kd2
{[%clk 0:01:07]} 39... Bg7 {[%clk 0:01:10.2]} 40. Rh1 {[%clk 0:01:05.9]} 40...
Bf8 {[%clk 0:01:10.4]} 41. Ra1 {[%clk 0:01:05.7]} 41... Bg7 {[%clk 0:01:10]} 42.
b5 {[%clk 0:01:05.4]} 42... axb5 {[%clk 0:01:09.7]} 43. Ra7 {[%clk 0:01:05.5]}
43... Bf8 {[%clk 0:01:06]} 44. Bd3 {[%clk 0:01:05.6]} 44... Bg7 {[%clk 0:01:06]}
45. b3 {[%clk 0:01:02.2]} 45... Bf8 {[%clk 0:01:06.2]} 46. Rh3 {[%clk
0:01:01.5]} 46... Bg7 {[%clk 0:01:06.3]} 47. Rg3 {[%clk 0:01:01.6]} 47... Bf8
{[%clk 0:01:06.7]} 48. Ra1 {[%clk 0:00:59.9]} 48... Bg7 {[%clk 0:01:07]} 49. Re1
{[%clk 0:00:54.3]} 49... Bf8 {[%clk 0:01:07]} 50. Rg2 {[%clk 0:00:53.7]} 50...
Bg7 {[%clk 0:01:07.3]} 51. Rge2 {[%clk 0:00:53.4]} 51... Bf8 {[%clk 0:01:01.1]}
52. f5 {[%clk 0:00:53.6]} 52... g5 {[%clk 0:01:00.5]} 53. e4 {[%clk 0:00:53]}
53... dxe4 {[%clk 0:01:00.3]} 54. Bxe4 {[%clk 0:00:53.4]} 54... Rd7 {[%clk
0:00:52.1]} 55. Kc3 {[%clk 0:00:53.4]} 55... Red8 {[%clk 0:00:52.1]} 56. d5
{[%clk 0:00:30.1]} 56... cxd5 {[%clk 0:00:51.7]} 57. Bd3 {[%clk 0:00:30.7]}
57... Bxc5 {[%clk 0:00:50.3]} 58. Bxb5 {[%clk 0:00:30.6]} 58... Rc7 {[%clk
0:00:50.2]} 59. Kd3 {[%clk 0:00:28.8]} 59... Bd6 {[%clk 0:00:49.7]} 60. Re6
{[%clk 0:00:24.3]} 60... Be5 {[%clk 0:00:50]} 61. Rd1 {[%clk 0:00:23.3]} 61...
Rd6 {[%clk 0:00:48.1]} 62. Re8 {[%clk 0:00:20.2]} 62... Rb6 {[%clk 0:00:47.6]}
63. Ba4 {[%clk 0:00:20.3]} 63... Rb4 {[%clk 0:00:47.8]} 64. Rh8 {[%clk
0:00:17.9]} 64... Kg7 {[%clk 0:00:46.8]} 65. Rd8 {[%clk 0:00:17.3]} 65... Rd4+
{[%clk 0:00:47.7]} 66. Ke2 {[%clk 0:00:17]} 66... Rc2+ {[%clk 0:00:47.5]} 67.
Ke1 {[%clk 0:00:16.2]} 67... Bg3+ {[%clk 0:00:47.4]} 68. Kf1 {[%clk 0:00:16.7]}
68... Rxd1# {[%clk 0:00:47.5]} 0-1

[Event "Early-Titled-Tuesday-Blitz-January-23-2024"]
[Site "Chess.com"]
[Date "2024.01.23"]
[Round "2"]
[White "SARGISMV"]
[Black "ChessGiantYouTube"]
[Result "0-1"]
[WhiteElo "2474"]
[BlackElo "2223"]
[TimeControl "180+1"]
[EndTime "8:17:58 PST"]
[Termination "ChessGiantYouTube won by resignation"]

1. Nf3 {[%clk 0:02:52.8]} 1... g6 {[%clk 0:02:59.2]} 2. c4 {[%clk 0:02:52.2]}
2... Bg7 {[%clk 0:02:59.8]} 3. Nc3 {[%clk 0:02:52.9]} 3... d6 {[%clk 0:03:00.2]}
4. h4 {[%clk 0:02:53.8]} 4... h6 {[%clk 0:02:59.8]} 5. e4 {[%clk 0:02:50.3]}
5... e6 {[%clk 0:02:59.5]} 6. d4 {[%clk 0:02:48.6]} 6... Ne7 {[%clk 0:03:00]} 7.
Be2 {[%clk 0:02:47.5]} 7... b6 {[%clk 0:02:59.6]} 8. Be3 {[%clk 0:02:45.6]} 8...
Bb7 {[%clk 0:03:00.1]} 9. Qd2 {[%clk 0:02:46.2]} 9... Nd7 {[%clk 0:03:00.1]} 10.
O-O {[%clk 0:02:41.4]} 10... f5 {[%clk 0:02:56.8]} 11. exf5 {[%clk 0:02:15.9]}
11... Nxf5 {[%clk 0:02:54.6]} 12. h5 {[%clk 0:02:11.5]} 12... g5 {[%clk
0:02:49.7]} 13. Rae1 {[%clk 0:02:00.2]} 13... O-O {[%clk 0:02:33.4]} 14. Nh2
{[%clk 0:01:51.1]} 14... Qf6 {[%clk 0:02:09]} 15. d5 {[%clk 0:01:35]} 15... Rae8
{[%clk 0:01:40.1]} 16. Ng4 {[%clk 0:01:27.1]} 16... Qf7 {[%clk 0:01:39.7]} 17.
Nb5 {[%clk 0:01:27]} 17... Nc5 {[%clk 0:01:29.2]} 18. Bxc5 {[%clk 0:01:12.3]}
18... bxc5 {[%clk 0:01:26.6]} 19. Bf3 {[%clk 0:01:02.1]} 19... exd5 {[%clk
0:01:14.7]} 20. Bxd5 {[%clk 0:00:44.7]} 20... Bxd5 {[%clk 0:01:14.1]} 21. Qxd5
{[%clk 0:00:33.9]} 21... Qxd5 {[%clk 0:01:02.4]} 22. cxd5 {[%clk 0:00:34.8]}
22... Bxb2 {[%clk 0:01:02.1]} 23. Nxc7 {[%clk 0:00:32.1]} 23... Rxe1 {[%clk
0:01:00.6]} 24. Rxe1 {[%clk 0:00:31]} 24... Bd4 {[%clk 0:00:52.3]} 25. Ne6
{[%clk 0:00:27.4]} 25... Rf7 {[%clk 0:00:44.7]} 26. Nxd4 {[%clk 0:00:21.3]}
26... cxd4 {[%clk 0:00:45]} 27. Re6 {[%clk 0:00:13.8]} 27... Kh7 {[%clk
0:00:38.3]} 28. Kf1 {[%clk 0:00:12.3]} 28... Rb7 {[%clk 0:00:25.4]} 29. Nf6+
{[%clk 0:00:07.7]} 29... Kh8 {[%clk 0:00:20.2]} 30. Ne4 {[%clk 0:00:06.7]} 30...
d3 {[%clk 0:00:17.8]} 31. Ke1 {[%clk 0:00:05.3]} 31... Nd4 {[%clk 0:00:17.3]}
32. Kd2 {[%clk 0:00:05.6]} 32... Nxe6 {[%clk 0:00:17]} 33. dxe6 {[%clk
0:00:06.5]} 33... Re7 {[%clk 0:00:17.3]} 34. Nxd6 {[%clk 0:00:06.5]} 34... Rxe6
{[%clk 0:00:16.3]} 35. Nf5 {[%clk 0:00:07.4]} 35... Ra6 {[%clk 0:00:15]} 36.
Kxd3 {[%clk 0:00:07.5]} 36... Rxa2 {[%clk 0:00:15.6]} 37. Nxh6 {[%clk
0:00:07.1]} 37... Rxf2 {[%clk 0:00:15.7]} 38. g4 {[%clk 0:00:08]} 38... a5
{[%clk 0:00:13.3]} 39. Ke3 {[%clk 0:00:08.3]} 39... Rf8 {[%clk 0:00:12.9]} 40.
Kd4 {[%clk 0:00:08.1]} 40... a4 {[%clk 0:00:13.1]} 41. Kc3 {[%clk 0:00:08.4]}
41... Rb8 {[%clk 0:00:13.2]} 42. Nf7+ {[%clk 0:00:07.5]} 42... Kg7 {[%clk
0:00:12.3]} 43. Nxg5 {[%clk 0:00:07]} 43... a3 {[%clk 0:00:12.2]} 44. Ne6+
{[%clk 0:00:07.9]} 44... Kf6 {[%clk 0:00:12.2]} 45. Nd4 {[%clk 0:00:08.6]} 45...
a2 {[%clk 0:00:12.3]} 46. Nc2 {[%clk 0:00:08.8]} 46... Rb1 {[%clk 0:00:12.4]}
47. h6 {[%clk 0:00:08.1]} 47... a1=Q+ {[%clk 0:00:13.3]} 48. Nxa1 {[%clk
0:00:08.2]} 48... Rxa1 {[%clk 0:00:14.2]} 49. Kd3 {[%clk 0:00:08.8]} 49... Kg6
{[%clk 0:00:14.4]} 50. Ke3 {[%clk 0:00:09.7]} 50... Kxh6 {[%clk 0:00:13.9]} 51.
Kf4 {[%clk 0:00:10.6]} 51... Kg6 {[%clk 0:00:14.8]} 52. Kg3 {[%clk 0:00:11.5]}
52... Ra5 {[%clk 0:00:14.9]} 0-1

[Event "Early-Titled-Tuesday-Blitz-January-23-2024"]
[Site "Chess.com"]
[Date "2024.01.23"]
[Round "2"]
[White "Philosopherrr"]
[Black "jcibarra"]
[Result "1/2-1/2"]
[WhiteElo "2426"]
[BlackElo "2830"]
[TimeControl "180+1"]
[EndTime "8:18:01 PST"]
[Termination "Game drawn by repetition"]

1. e4 {[%clk 0:01:15.9]} 1... c5 {[%clk 0:01:16.6]} 2. Nf3 {[%clk 0:01:15.2]}
2... e6 {[%clk 0:01:17.1]} 3. d4 {[%clk 0:01:14.9]} 3... cxd4 {[%clk 0:01:17.9]}
4. Nxd4 {[%clk 0:01:15.3]} 4... Bc5 {[%clk 0:01:18.5]} 5. Nb3 {[%clk 0:01:13.6]}
5... Bb6 {[%clk 0:01:18.9]} 6. Nc3 {[%clk 0:01:13.9]} 6... Ne7 {[%clk
0:01:19.5]} 7. g3 {[%clk 0:01:13.8]} 7... O-O {[%clk 0:01:19.5]} 8. Bg2 {[%clk
0:01:13.7]} 8... f5 {[%clk 0:01:20.1]} 9. O-O {[%clk 0:01:13.6]} 9... Nbc6
{[%clk 0:01:20.6]} 10. a4 {[%clk 0:01:05.4]} 10... fxe4 {[%clk 0:01:19.8]} 11.
Nxe4 {[%clk 0:01:03.8]} 11... d5 {[%clk 0:01:20.3]} 12. Nec5 {[%clk 0:01:01.3]}
12... Qd6 {[%clk 0:01:17]} 13. Ne4 {[%clk 0:00:52.4]} 13... Qd8 {[%clk
0:01:11.2]} 14. Nec5 {[%clk 0:00:52.1]} 14... Nf5 {[%clk 0:01:10.6]} 15. Re1
{[%clk 0:00:41.8]} 15... Qd6 {[%clk 0:00:51.4]} 16. Bf4 {[%clk 0:00:35.9]} 16...
Qd8 {[%clk 0:00:23.6]} 17. Nxe6 {[%clk 0:00:31.6]} 17... Bxe6 {[%clk 0:00:23.9]}
18. Rxe6 {[%clk 0:00:31.8]} 18... Nfd4 {[%clk 0:00:23.1]} 19. Nxd4 {[%clk
0:00:27.7]} 19... Nxd4 {[%clk 0:00:23.1]} 20. Re1 {[%clk 0:00:26.6]} 20... Rxf4
{[%clk 0:00:19.6]} 21. gxf4 {[%clk 0:00:25.3]} 21... Qh4 {[%clk 0:00:19.8]} 22.
c3 {[%clk 0:00:20.7]} 22... Nc6 {[%clk 0:00:18.3]} 23. Qxd5+ {[%clk 0:00:20.8]}
23... Kh8 {[%clk 0:00:18.3]} 24. Qf3 {[%clk 0:00:21]} 24... Rf8 {[%clk 0:00:18]}
25. Re4 {[%clk 0:00:20.7]} 25... Bc7 {[%clk 0:00:13.4]} 26. Qg3 {[%clk
0:00:20.7]} 26... Qh6 {[%clk 0:00:13.1]} 27. Rae1 {[%clk 0:00:20.5]} 27... Bxf4
{[%clk 0:00:12.2]} 28. Rxf4 {[%clk 0:00:19]} 28... Rg8 {[%clk 0:00:07.8]} 29.
Rh4 {[%clk 0:00:18.6]} 29... Qf6 {[%clk 0:00:07.4]} 30. Be4 {[%clk 0:00:18.3]}
30... g6 {[%clk 0:00:07.3]} 31. Bg2 {[%clk 0:00:17.7]} 31... Rf8 {[%clk
0:00:06]} 32. Rhe4 {[%clk 0:00:15.7]} 32... Kg8 {[%clk 0:00:05.2]} 33. Re6
{[%clk 0:00:15.6]} 33... Qf5 {[%clk 0:00:05.4]} 34. Bxc6 {[%clk 0:00:16]} 34...
bxc6 {[%clk 0:00:05.6]} 35. Rxc6 {[%clk 0:00:16.6]} 35... Qh5 {[%clk 0:00:04.8]}
36. Rce6 {[%clk 0:00:16]} 36... Rf5 {[%clk 0:00:05.2]} 37. Re8+ {[%clk
0:00:16.2]} 37... Kg7 {[%clk 0:00:05.9]} 38. R1e7+ {[%clk 0:00:16.1]} 38... Kh6
{[%clk 0:00:06.6]} 39. Qe3+ {[%clk 0:00:16.4]} 39... Rg5+ {[%clk 0:00:07.2]} 40.
Kf1 {[%clk 0:00:15.2]} 40... Qd1+ {[%clk 0:00:07.2]} 41. Qe1 {[%clk 0:00:15.2]}
41... Qd3+ {[%clk 0:00:07.9]} 42. Qe2 {[%clk 0:00:12.8]} 42... Qb1+ {[%clk
0:00:06.2]} 43. Qe1 {[%clk 0:00:09.5]} 43... Qd3+ {[%clk 0:00:06.6]} 44. Qe2
{[%clk 0:00:09.8]} 44... Qb1+ {[%clk 0:00:03.5]} 45. Qe1 {[%clk 0:00:07.9]}
45... Qd3+ {[%clk 0:00:04.1]} 1/2-1/2

[Event "Early-Titled-Tuesday-Blitz-January-23-2024"]
[Site "Chess.com"]
[Date "2024.01.23"]
[Round "2"]
[White "Ezov"]
[Black "almaguerjm"]
[Result "1-0"]
[WhiteElo "2229"]
[BlackElo "2476"]
[TimeControl "180+1"]
[EndTime "8:18:01 PST"]
[Termination "Ezov won by checkmate"]

1. d4 {[%clk 0:03:00.9]} 1... Nf6 {[%clk 0:02:44.9]} 2. Nc3 {[%clk 0:03:00]}
2... d5 {[%clk 0:02:16.9]} 3. Bf4 {[%clk 0:02:58.3]} 3... e6 {[%clk 0:02:16.7]}
4. Qd2 {[%clk 0:02:57.5]} 4... c5 {[%clk 0:02:11.4]} 5. e3 {[%clk 0:02:56.2]}
5... a6 {[%clk 0:02:07.4]} 6. O-O-O {[%clk 0:02:55]} 6... Nc6 {[%clk 0:02:06.3]}
7. f3 {[%clk 0:02:53.4]} 7... cxd4 {[%clk 0:02:01.9]} 8. exd4 {[%clk 0:02:52.8]}
8... Bb4 {[%clk 0:02:01.8]} 9. a3 {[%clk 0:02:51.6]} 9... Bd6 {[%clk 0:01:58.9]}
10. g4 {[%clk 0:02:49.4]} 10... Qc7 {[%clk 0:01:37.8]} 11. Nh3 {[%clk
0:02:46.8]} 11... O-O {[%clk 0:01:32.2]} 12. Bxd6 {[%clk 0:02:18.6]} 12... Qxd6
{[%clk 0:01:29.7]} 13. Nf4 {[%clk 0:02:18.5]} 13... Rd8 {[%clk 0:01:20.5]} 14.
g5 {[%clk 0:02:17.7]} 14... Nd7 {[%clk 0:01:17.6]} 15. h4 {[%clk 0:01:59.9]}
15... Nb6 {[%clk 0:01:07.8]} 16. h5 {[%clk 0:01:56.2]} 16... Nxd4 {[%clk
0:01:07.8]} 17. Qxd4 {[%clk 0:01:47.9]} 17... e5 {[%clk 0:01:08]} 18. Qd3 {[%clk
0:01:36.2]} 18... exf4 {[%clk 0:01:06.8]} 19. g6 {[%clk 0:01:34.6]} 19... fxg6
{[%clk 0:01:03.9]} 20. hxg6 {[%clk 0:01:33.2]} 20... Qxg6 {[%clk 0:01:03.2]} 21.
Qd4 {[%clk 0:01:30.7]} 21... Bf5 {[%clk 0:00:57.7]} 22. Rg1 {[%clk 0:01:22.8]}
22... Qh6 {[%clk 0:00:56]} 23. Bd3 {[%clk 0:01:08.9]} 23... Bxd3 {[%clk
0:00:54.1]} 24. Qxd3 {[%clk 0:01:07.9]} 24... Qe6 {[%clk 0:00:38.9]} 25. Rde1
{[%clk 0:01:02.8]} 25... Qf6 {[%clk 0:00:38.9]} 26. Rh1 {[%clk 0:01:00]} 26...
g6 {[%clk 0:00:37.2]} 27. Rh6 {[%clk 0:00:41.6]} 27... Rac8 {[%clk 0:00:35.5]}
28. Reh1 {[%clk 0:00:40.5]} 28... Rc7 {[%clk 0:00:35.4]} 29. Ne2 {[%clk
0:00:30.7]} 29... Nc4 {[%clk 0:00:29.6]} 30. c3 {[%clk 0:00:29.2]} 30... d4
{[%clk 0:00:13.3]} 31. Nxd4 {[%clk 0:00:28.2]} 31... Ne3 {[%clk 0:00:12.8]} 32.
Kb1 {[%clk 0:00:25.1]} 32... Rcd7 {[%clk 0:00:12.7]} 33. Qe4 {[%clk 0:00:24.5]}
33... Re7 {[%clk 0:00:10]} 34. Qd3 {[%clk 0:00:21.8]} 34... Nf5 {[%clk
0:00:08.6]} 35. R6h2 {[%clk 0:00:19.1]} 35... Nxd4 {[%clk 0:00:09]} 36. cxd4
{[%clk 0:00:18.7]} 36... Rxd4 {[%clk 0:00:09.9]} 37. Qb3+ {[%clk 0:00:16.8]}
37... Kh8 {[%clk 0:00:05.8]} 38. Rh6 {[%clk 0:00:14.6]} 38... Red7 {[%clk
0:00:05.3]} 39. Ka2 {[%clk 0:00:13.9]} 39... Rd2 {[%clk 0:00:04.8]} 40. R1h2
{[%clk 0:00:12.9]} 40... a5 {[%clk 0:00:04.8]} 41. Rxd2 {[%clk 0:00:11.6]} 41...
Rxd2 {[%clk 0:00:05.7]} 42. Qxb7 {[%clk 0:00:10.6]} 42... Rd8 {[%clk 0:00:03.8]}
43. Qxh7# {[%clk 0:00:08.7]} 1-0

[Event "Early-Titled-Tuesday-Blitz-January-23-2024"]
[Site "Chess.com"]
[Date "2024.01.23"]
[Round "2"]
[White "yaguigor"]
[Black "Denis_Makhnyov"]
[Result "0-1"]
[WhiteElo "2629"]
[BlackElo "3019"]
[TimeControl "180+1"]
[EndTime "8:18:02 PST"]
[Termination "Denis_Makhnyov won on time"]

1. e4 {[%clk 0:03:00.9]} 1... e5 {[%clk 0:03:00.4]} 2. Nf3 {[%clk 0:03:00.3]}
2... Nc6 {[%clk 0:03:01.2]} 3. Bb5 {[%clk 0:02:59.7]} 3... a6 {[%clk 0:03:01.6]}
4. Ba4 {[%clk 0:02:59.9]} 4... Nf6 {[%clk 0:03:02.1]} 5. O-O {[%clk 0:02:59.4]}
5... Be7 {[%clk 0:03:02.6]} 6. d3 {[%clk 0:02:59.4]} 6... b5 {[%clk 0:03:02.6]}
7. Bb3 {[%clk 0:03:00]} 7... O-O {[%clk 0:03:03.5]} 8. Nc3 {[%clk 0:02:59.1]}
8... Bb7 {[%clk 0:02:56.1]} 9. a4 {[%clk 0:02:46.7]} 9... Nd4 {[%clk 0:02:53.6]}
10. Nxd4 {[%clk 0:02:43.6]} 10... exd4 {[%clk 0:02:53.7]} 11. Ne2 {[%clk
0:02:44.4]} 11... c5 {[%clk 0:02:54.1]} 12. e5 {[%clk 0:02:37]} 12... Ne8 {[%clk
0:02:50.5]} 13. Ng3 {[%clk 0:02:30.4]} 13... d6 {[%clk 0:02:28.7]} 14. f4 {[%clk
0:02:17.1]} 14... Rc8 {[%clk 0:02:19.8]} 15. Qg4 {[%clk 0:02:06.6]} 15... c4
{[%clk 0:02:17.9]} 16. Ba2 {[%clk 0:02:05.8]} 16... dxe5 {[%clk 0:02:00]} 17.
fxe5 {[%clk 0:02:04.6]} 17... Rc6 {[%clk 0:02:00.4]} 18. Ne4 {[%clk 0:01:57.9]}
18... Rg6 {[%clk 0:01:50.8]} 19. Qf3 {[%clk 0:01:53.3]} 19... Qc7 {[%clk
0:01:46.6]} 20. Bf4 {[%clk 0:01:46.7]} 20... Qc6 {[%clk 0:01:43.2]} 21. axb5
{[%clk 0:01:39.7]} 21... axb5 {[%clk 0:01:43.1]} 22. Rae1 {[%clk 0:01:36.4]}
22... Nc7 {[%clk 0:01:40.8]} 23. Qe2 {[%clk 0:01:26.6]} 23... Ra8 {[%clk
0:01:30.6]} 24. Bb1 {[%clk 0:01:25.2]} 24... Ne6 {[%clk 0:01:29.5]} 25. Bg3
{[%clk 0:01:18.8]} 25... c3 {[%clk 0:00:52.9]} 26. Qf2 {[%clk 0:01:08.5]} 26...
Rf8 {[%clk 0:00:36.1]} 27. bxc3 {[%clk 0:01:04.7]} 27... dxc3 {[%clk 0:00:36.2]}
28. Ba2 {[%clk 0:01:00.5]} 28... b4 {[%clk 0:00:36.3]} 29. d4 {[%clk 0:00:55.9]}
29... Qd7 {[%clk 0:00:26]} 30. Nd6 {[%clk 0:00:50]} 30... Bxd6 {[%clk
0:00:12.6]} 31. exd6 {[%clk 0:00:50.9]} 31... Ba6 {[%clk 0:00:13.1]} 32. Bxe6
{[%clk 0:00:40.7]} 32... Rxe6 {[%clk 0:00:13.4]} 33. Rxe6 {[%clk 0:00:40.8]}
33... Qxe6 {[%clk 0:00:14]} 34. Re1 {[%clk 0:00:41.2]} 34... Qa2 {[%clk
0:00:13.6]} 35. h3 {[%clk 0:00:35.7]} 35... Bb5 {[%clk 0:00:10.3]} 36. Re7
{[%clk 0:00:33.9]} 36... Ba4 {[%clk 0:00:10.6]} 37. Rb7 {[%clk 0:00:20.5]} 37...
b3 {[%clk 0:00:07.3]} 38. cxb3 {[%clk 0:00:16.8]} 38... c2 {[%clk 0:00:07.5]}
39. Rc7 {[%clk 0:00:13]} 39... Bxb3 {[%clk 0:00:07.1]} 40. Kh2 {[%clk
0:00:09.6]} 40... Qb2 {[%clk 0:00:06.3]} 41. Bf4 {[%clk 0:00:08.4]} 41... c1=Q
{[%clk 0:00:06.5]} 42. Bxc1 {[%clk 0:00:07.8]} 42... Qxf2 {[%clk 0:00:06.5]} 0-1

[Event "Early-Titled-Tuesday-Blitz-January-23-2024"]
[Site "Chess.com"]
[Date "2024.01.23"]
[Round "2"]
[White "TitarovVasiliYouTube"]
[Black "Byniolus"]
[Result "0-1"]
[WhiteElo "2562"]
[BlackElo "2849"]
[TimeControl "180+1"]
[EndTime "8:18:02 PST"]
[Termination "Byniolus won on time"]

1. e4 {[%clk 0:03:00.9]} 1... d5 {[%clk 0:03:00.4]} 2. exd5 {[%clk 0:03:01.7]}
2... Nf6 {[%clk 0:03:00.8]} 3. d4 {[%clk 0:02:59.3]} 3... Nxd5 {[%clk 0:03:01]}
4. c4 {[%clk 0:02:58.2]} 4... Nb6 {[%clk 0:03:01.4]} 5. Nf3 {[%clk 0:02:57.3]}
5... Bg4 {[%clk 0:03:01.4]} 6. c5 {[%clk 0:02:56]} 6... N6d7 {[%clk 0:03:01.5]}
7. Be2 {[%clk 0:02:46]} 7... e6 {[%clk 0:02:44.4]} 8. O-O {[%clk 0:02:45.2]}
8... Nc6 {[%clk 0:02:41.7]} 9. h3 {[%clk 0:02:40.7]} 9... Bh5 {[%clk 0:02:29.1]}
10. Nc3 {[%clk 0:02:37.2]} 10... Be7 {[%clk 0:02:27.5]} 11. Bf4 {[%clk
0:02:34.5]} 11... O-O {[%clk 0:02:23.9]} 12. Bh2 {[%clk 0:02:04.4]} 12... Nf6
{[%clk 0:02:14.5]} 13. Ne5 {[%clk 0:01:44.7]} 13... Bxe2 {[%clk 0:02:09.3]} 14.
Nxe2 {[%clk 0:01:45.6]} 14... Nxe5 {[%clk 0:01:55.6]} 15. Bxe5 {[%clk
0:01:46.5]} 15... Nd5 {[%clk 0:01:53]} 16. Nc3 {[%clk 0:01:43.7]} 16... Nxc3
{[%clk 0:01:41.4]} 17. bxc3 {[%clk 0:01:43.9]} 17... b6 {[%clk 0:01:39.5]} 18.
cxb6 {[%clk 0:01:43.5]} 18... axb6 {[%clk 0:01:33.8]} 19. Qg4 {[%clk 0:01:41.3]}
19... Bf6 {[%clk 0:01:34.1]} 20. Bxf6 {[%clk 0:01:13.5]} 20... Qxf6 {[%clk
0:01:35]} 21. a4 {[%clk 0:01:12.6]} 21... Ra5 {[%clk 0:01:32.5]} 22. Qe4 {[%clk
0:01:11.4]} 22... Rfa8 {[%clk 0:01:23.9]} 23. Qc6 {[%clk 0:01:10.5]} 23... Qd8
{[%clk 0:01:21.6]} 24. Rfb1 {[%clk 0:00:42]} 24... h6 {[%clk 0:01:18.3]} 25. Rb4
{[%clk 0:00:38.5]} 25... R5a7 {[%clk 0:01:09.9]} 26. Rd1 {[%clk 0:00:35.3]}
26... Qd5 {[%clk 0:00:47.7]} 27. Qxd5 {[%clk 0:00:22]} 27... exd5 {[%clk
0:00:48.6]} 28. Rb5 {[%clk 0:00:22.9]} 28... Ra5 {[%clk 0:00:49]} 29. Rdb1
{[%clk 0:00:21.4]} 29... Kf8 {[%clk 0:00:46.7]} 30. Kf1 {[%clk 0:00:11.5]} 30...
Ke7 {[%clk 0:00:44.2]} 31. Rxa5 {[%clk 0:00:12.1]} 31... Rxa5 {[%clk 0:00:45.1]}
32. Rb4 {[%clk 0:00:12.1]} 32... Kd6 {[%clk 0:00:38.7]} 33. Ke2 {[%clk
0:00:12.7]} 33... Ra6 {[%clk 0:00:37.5]} 34. Kd3 {[%clk 0:00:12.1]} 34... g5
{[%clk 0:00:30.8]} 35. g3 {[%clk 0:00:09.8]} 35... f5 {[%clk 0:00:30.3]} 36. h4
{[%clk 0:00:06.6]} 36... Ra8 {[%clk 0:00:21.1]} 37. hxg5 {[%clk 0:00:05.8]}
37... hxg5 {[%clk 0:00:22]} 38. Ke3 {[%clk 0:00:04.9]} 38... Re8+ {[%clk
0:00:17.6]} 39. Kd2 {[%clk 0:00:03.3]} 39... f4 {[%clk 0:00:15.8]} 40. gxf4
{[%clk 0:00:03.2]} 40... gxf4 {[%clk 0:00:16.7]} 41. Rb1 {[%clk 0:00:03.3]}
41... Ra8 {[%clk 0:00:12.2]} 42. Ra1 {[%clk 0:00:02.1]} 42... c5 {[%clk
0:00:09.7]} 0-1